bitfinex/quotes_BTCUSD_20240718
["timestamp","ask_amount","ask_price","bid_price","bid_amount"]
[1721329056042,0.002194,63647.0,63645.0,0.15438174]
[1721329056275,0.002194,63647.0,63637.0,0.314279]
[1721329056276,0.001594,63647.0,63637.0,0.314279]
[1721329056534,0.375423,63649.0,63634.0,0.314293]
[1721329056535,0.15713,63642.0,63638.0,0.31271974]
[1721329056759,0.157022,63645.0,63641.0,0.157131]
[1721329056998,0.0621,63646.0,63642.0,0.46983574]
[1721329057227,0.001594,63645.0,63643.0,0.157125]
[1721329057448,0.001594,63645.0,63642.0,0.31150974]
[1721329058463,0.0815,63644.0,63642.0,0.31150974]
[1721329058688,0.0815,63644.0,63643.0,0.157126]
[1721329059141,0.0621,63646.0,63645.0,0.471364]
[1721329059379,0.0621,63646.0,63645.0,0.62574574]
[1721329059608,0.0621,63646.0,63645.0,0.93998874]
[1721329060750,0.0621,63646.0,63645.0,0.62574574]
[1721329061688,0.0621,63646.0,63645.0,0.31450274]
[1721329061928,0.0621,63646.0,63645.0,0.31850274]
[1721329062185,0.0621,63646.0,63645.0,0.63274574]
[1721329063684,0.0621,63646.0,63645.0,0.94698874]
[1721329064110,0.0621,63646.0,63645.0,0.63274574]
[1721329064759,0.0621,63646.0,63645.0,0.94698874]
[1721329064981,0.0621,63646.0,63645.0,0.63274574]
[1721329065429,0.0621,63646.0,63645.0,0.94698874]
[1721329065647,0.0621,63646.0,63645.0,0.63274574]
[1721329066158,0.0621,63646.0,63645.0,0.94698874]
[1721329066411,0.1461,63650.0,63648.0,0.157112]
[1721329066630,0.1461,63650.0,63649.0,0.157111]
[1721329066848,0.1461,63650.0,63649.0,0.471334]
[1721329067321,0.1461,63650.0,63649.0,1.25416174]
[1721329067788,0.1461,63650.0,63649.0,0.93993874]
[1721329068014,0.1461,63650.0,63645.0,0.31824]
[1721329068015,0.1471,63650.0,63645.0,0.004]
[1721329068245,0.1471,63650.0,63646.0,0.0012]
[1721329068488,0.158706,63649.0,63645.0,0.15712]
[1721329069603,0.158706,63649.0,63646.0,0.002]
[1721329070099,0.158706,63649.0,63645.0,0.15712]
[1721329070366,0.158706,63649.0,63645.0,0.16112]
[1721329070595,0.001594,63649.0,63646.0,0.157118]
[1721329070829,0.303209,63650.0,63646.0,0.157118]
[1721329071053,0.001594,63649.0,63646.0,0.157118]
[1721329071308,0.158707,63649.0,63645.0,0.007]
[1721329071562,0.157119,63646.0,63642.0,0.157126]
[1721329071798,0.064494,63645.0,63642.0,0.15438174]
[1721329072053,0.0629,63645.0,63643.0,0.0012]
[1721329072275,0.0629,63645.0,63642.0,0.15438174]
[1721329072513,0.0629,63645.0,63643.0,0.157126]
[1721329073455,0.0629,63645.0,63644.0,0.157124]
[1721329074537,0.0629,63645.0,63643.0,0.008]
[1721329074538,0.0629,63645.0,63643.0,0.016]
[1721329074758,0.001594,63644.0,63643.0,0.008]
[1721329074980,0.220021,63645.0,63643.0,0.0078194]
[1721329075205,0.220021,63645.0,63644.0,0.016]
[1721329075649,0.0629,63645.0,63644.0,0.008]
[1721329076093,0.0629,63645.0,63643.0,0.016]
[1721329076366,0.001594,63644.0,63643.0,0.016]
[1721329076586,0.0629,63645.0,63643.0,0.016]
[1721329076587,0.0629,63645.0,63643.0,0.008]
[1721329076801,0.0629,63645.0,63643.0,0.007]
[1721329077021,0.001594,63644.0,63643.0,0.007]
[1721329077249,0.870214,63644.0,63643.0,0.007]
[1721329077485,0.93502,63644.0,63643.0,0.007]
[1721329077779,0.1494,63644.0,63643.0,0.007]
[1721329078003,0.1494,63644.0,63640.0,0.471395]
[1721329078218,0.1494,63644.0,63641.0,0.157131]
[1721329078432,0.157126,63643.0,63640.0,0.157133]
[1721329078654,0.001594,63642.0,63641.0,0.157131]
[1721329078908,0.1494,63644.0,63640.0,0.314265]
[1721329078909,0.1494,63644.0,63643.0,0.157126]
[1721329079340,0.1504,63644.0,63642.0,0.157128]
[1721329080121,0.1494,63644.0,63642.0,0.157128]
[1721329080368,0.0617,63648.0,63647.0,0.157116]
[1721329080839,0.0617,63648.0,63646.0,0.157118]
[1721329081079,0.0617,63648.0,63647.0,0.157116]
[1721329082242,0.0766,63650.0,63649.0,0.157111]
[1721329082469,0.0766,63650.0,63648.0,0.157113]
[1721329082699,0.0766,63650.0,63646.0,0.005]
[1721329082920,0.0766,63650.0,63639.0,0.314269]
[1721329082921,0.157119,63646.0,63642.0,0.0012]
[1721329083140,0.157126,63643.0,63641.0,0.007]
[1721329083361,0.157126,63643.0,63639.0,0.157135]
[1721329083600,0.455744,63645.0,63630.0,0.0012]
[1721329083601,0.0618,63640.0,63632.0,0.314307]
[1721329083823,0.0618,63640.0,63633.0,0.0012]
[1721329083824,0.081294,63639.0,63633.0,0.0012]
[1721329084091,0.081294,63639.0,63631.0,0.062942]
[1721329084092,0.0797,63639.0,63632.0,0.0012]
[1721329084318,0.157148,63634.0,63632.0,0.0012]
[1721329084541,0.001594,63633.0,63630.0,0.20710335]
[1721329084776,0.001594,63633.0,63630.0,0.157158]
[1721329085280,0.001594,63633.0,63631.0,0.157155]
[1721329085563,0.001594,63634.0,63631.0,0.157155]
[1721329086223,0.001594,63634.0,63632.0,0.15438174]
[1721329086443,0.0627,63638.0,63637.0,0.157141]
[1721329086629,0.0797,63639.0,63638.0,0.157138]
[1721329087533,0.0797,63639.0,63637.0,0.157139]
[1721329087730,0.0797,63639.0,63638.0,0.157138]
[1721329087936,0.0797,63639.0,63637.0,0.005]
[1721329088373,0.158732,63638.0,63637.0,0.005]
[1721329088592,0.849492,63638.0,63637.0,0.01]
[1721329088816,0.535215,63638.0,63637.0,0.01]
[1721329089022,0.535215,63638.0,63637.0,0.005]
[1721329089268,0.157146,63635.0,63631.0,0.158354]
[1721329089479,0.378077,63638.0,63633.0,0.157149]
[1721329089692,0.001594,63637.0,63633.0,0.157149]
[1721329090555,0.157144,63636.0,63633.0,0.157149]
[1721329091013,0.001594,63635.0,63633.0,0.005]
[1721329091717,0.001594,63635.0,63633.0,0.011]
[1721329091950,0.001594,63635.0,63634.0,0.62582674]
[1721329092177,0.0638,63638.0,63634.0,0.62582674]
[1721329092178,0.220939,63638.0,63635.0,0.157144]
[1721329092373,0.0638,63638.0,63636.0,0.0012]
[1721329092844,0.220939,63638.0,63636.0,0.0012]
[1721329093054,0.220939,63638.0,63635.0,0.157144]
[1721329093917,0.0638,63638.0,63636.0,0.157143]
[1721329094167,0.0638,63638.0,63637.0,0.157141]
[1721329094351,0.0611,63642.0,63641.0,0.471393]
[1721329094590,0.0611,63642.0,63641.0,0.157131]
[1721329095027,0.0611,63642.0,63640.0,0.157133]
[1721329095241,0.0611,63642.0,63641.0,0.157131]
[1721329095472,0.0611,63642.0,63640.0,0.157133]
[1721329096118,0.0611,63642.0,63641.0,0.157131]
[1721329096907,0.0611,63642.0,63641.0,0.471393]
[1721329097548,0.0611,63642.0,63641.0,0.157131]
[1721329098738,0.157135,63640.0,63637.0,0.15714]
[1721329099109,0.157134,63640.0,63637.0,0.15714]
[1721329099331,0.157131,63641.0,63637.0,0.15714]
[1721329099554,0.001594,63640.0,63638.0,0.157138]
[1721329099772,0.001594,63640.0,63639.0,0.157136]
[1721329099986,0.001594,63641.0,63639.0,0.157136]
[1721329102128,0.001594,63641.0,63640.0,0.4714]
[1721329102358,0.0769,63644.0,63643.0,0.157126]
[1721329103250,0.0769,63644.0,63641.0,0.157129]
[1721329103460,0.001594,63643.0,63641.0,0.157129]
[1721329103667,0.001594,63643.0,63642.0,0.157128]
[1721329104094,0.0769,63644.0,63643.0,0.157126]
[1721329104323,0.0769,63644.0,63643.0,0.471378]
[1721329104550,0.0789,63644.0,63643.0,0.471378]
[1721329105218,0.0789,63644.0,63643.0,0.157126]
[1721329106297,0.0789,63644.0,63643.0,0.471378]
[1721329106717,0.0769,63644.0,63643.0,0.471378]
[1721329106970,0.06083,63646.0,63644.0,0.157123]
[1721329107184,0.00083,63646.0,63645.0,0.62574574]
[1721329107416,0.00083,63646.0,63645.0,0.93998874]
[1721329109056,0.00283,63646.0,63645.0,0.93998874]
[1721329109989,0.00283,63646.0,63645.0,0.95298874]
[1721329110211,0.00083,63646.0,63645.0,0.95298874]
[1721329110435,0.00083,63646.0,63645.0,0.96598874]
[1721329110661,0.00083,63646.0,63645.0,0.65174574]
[1721329110890,0.00083,63646.0,63645.0,0.026]
[1721329111110,0.14313,63646.0,63645.0,0.026]
[1721329111795,0.300249,63646.0,63645.0,0.026]
[1721329112049,0.928725,63646.0,63645.0,0.026]
[1721329112283,1.41016789,63646.0,63645.0,0.026]
[1721329112498,1.31596973,63646.0,63645.0,0.026]
[1721329112960,1.43371743,63646.0,63645.0,0.026]
[1721329113175,0.157144,63636.0,63633.0,0.0012]
[1721329113396,0.148794,63635.0,63632.0,0.157152]
[1721329113837,0.305942,63635.0,63630.0,0.157156]
[1721329114061,0.305942,63635.0,63630.0,0.314316]
[1721329114524,0.305942,63635.0,63632.0,0.008]
[1721329114969,0.305942,63635.0,63631.0,0.157154]
[1721329116144,0.305942,63635.0,63631.0,0.165154]
[1721329116852,0.305942,63635.0,63632.0,0.008]
[1721329117086,0.305942,63635.0,63631.0,0.165154]
[1721329117347,0.305942,63635.0,63631.0,0.173154]
[1721329117553,0.305942,63635.0,63632.0,0.157153]
[1721329117768,0.304348,63635.0,63632.0,0.157153]
[1721329117979,0.1472,63635.0,63632.0,0.157153]
[1721329118197,0.001594,63634.0,63632.0,0.157153]
[1721329118427,0.001594,63634.0,63632.0,0.165153]
[1721329119044,0.001594,63634.0,63632.0,0.157153]
[1721329119481,0.001594,63634.0,63632.0,0.167153]
[1721329119685,0.001594,63634.0,63632.0,0.175153]
[1721329120188,0.001594,63634.0,63633.0,0.785755]
[1721329120434,0.001594,63638.0,63637.0,0.471423]
[1721329120656,0.06533,63646.0,63641.0,0.314262]
[1721329120886,0.06533,63646.0,63645.0,0.471364]
[1721329120887,0.00083,63646.0,63645.0,0.471364]
[1721329122566,0.00078,63646.0,63645.0,0.481364]
[1721329123566,0.00078,63646.0,63645.0,0.490364]
[1721329125186,0.00078,63646.0,63645.0,0.176121]
[1721329125406,0.472137,63646.0,63645.0,0.019]
[1721329125637,0.849075,63646.0,63645.0,0.019]
[1721329126059,0.89746714,63646.0,63645.0,0.019]
[1721329126564,0.92578,63639.0,63638.0,0.0012]
[1721329126790,0.157148,63634.0,63633.0,0.04968641]
[1721329127020,0.157146,63635.0,63632.0,0.000913]
[1721329127708,0.314287,63637.0,63632.0,0.000913]
[1721329127709,0.157148,63634.0,63632.0,0.000913]
[1721329128917,0.157151,63633.0,63632.0,0.010913]
[1721329129898,0.157151,63633.0,63632.0,0.019913]
[1721329130135,0.158149,63634.0,63632.0,0.010913]
[1721329130362,0.001,63634.0,63632.0,0.010913]
[1721329130616,0.001,63634.0,63632.0,0.168066]
[1721329130830,0.001,63633.0,63632.0,0.178066]
[1721329131055,0.001,63633.0,63632.0,0.168066]
[1721329131274,0.002,63633.0,63632.0,0.178066]
[1721329132482,0.002,63633.0,63632.0,0.187066]
[1721329132702,0.001,63633.0,63632.0,0.482373]
[1721329136138,0.001,63633.0,63632.0,0.168066]
[1721329136377,0.001,63633.0,63632.0,0.010913]
[1721329136838,0.001,63633.0,63632.0,0.168066]
[1721329137061,0.001,63633.0,63632.0,0.010913]
[1721329137565,0.472453,63633.0,63632.0,0.010913]
[1721329138019,0.608253,63633.0,63632.0,0.010913]
[1721329138280,1.07847941,63633.0,63632.0,0.010913]
[1721329138503,1.48698047,63633.0,63632.0,0.010913]
[1721329138722,1.40396048,63633.0,63632.0,0.000913]
[1721329138964,1.35581463,63633.0,63632.0,0.000913]
[1721329139475,1.31575957,63633.0,63632.0,0.000913]
[1721329139706,1.26645166,63633.0,63632.0,0.000913]
[1721329139930,1.31530084,63633.0,63632.0,0.000913]
[1721329140192,1.27545166,63633.0,63632.0,0.000913]
[1721329140413,1.41174494,63633.0,63632.0,0.000913]
[1721329140658,2.04515276,63633.0,63632.0,0.000913]
[1721329140875,2.19792868,63633.0,63632.0,0.000913]
[1721329141314,2.59752006,63633.0,63632.0,0.000913]
[1721329141579,2.27821806,63633.0,63632.0,0.000913]
[1721329142026,2.29021806,63633.0,63632.0,0.001913]
[1721329142260,1.72993872,63633.0,63632.0,0.001913]
[1721329142487,1.58873661,63633.0,63632.0,0.001913]
[1721329142730,1.57673661,63633.0,63632.0,0.001913]
[1721329143214,1.70965101,63633.0,63632.0,0.001913]
[1721329143667,1.82722007,63633.0,63632.0,0.001913]
[1721329143897,1.81522007,63633.0,63632.0,1.000913]
[1721329144125,1.87622007,63633.0,63632.0,1.001913]
[1721329144356,1.75865101,63633.0,63632.0,1.001913]
[1721329144574,1.8761963,63633.0,63632.0,1.000913]
[1721329144790,1.8651963,63633.0,63632.0,1.000913]
[1721329145246,1.6932819,63633.0,63632.0,1.001913]
[1721329145469,1.75494145,63633.0,63632.0,1.001913]
[1721329145712,1.80290094,63633.0,63632.0,1.001913]
[1721329146181,2.43150494,63633.0,63632.0,1.001913]
[1721329146418,2.58585451,63633.0,63632.0,1.001913]
[1721329146645,2.67125289,63633.0,63632.0,1.001913]
[1721329146867,2.81223878,63633.0,63632.0,1.001913]
[1721329147340,2.66025289,63633.0,63632.0,1.000913]
[1721329147576,2.81219079,63633.0,63632.0,1.001913]
[1721329148086,2.67125289,63633.0,63632.0,1.001913]
[1721329148536,2.34349144,63633.0,63632.0,1.001913]
[1721329148762,2.34349144,63633.0,63621.0,0.05063426]
[1721329148763,1.464602,63622.0,63621.0,0.05063426]
[1721329148990,2.18500729,63622.0,63621.0,0.05063426]
[1721329149216,2.68449169,63622.0,63621.0,0.000913]
[1721329149435,2.57102863,63622.0,63621.0,0.000913]
[1721329149663,1.98070456,63622.0,63621.0,0.000913]
[1721329150144,1.88682306,63622.0,63621.0,0.000913]
[1721329150382,1.9682098,63622.0,63621.0,0.000913]
[1721329150848,1.89782306,63622.0,63621.0,0.000913]
[1721329151313,1.9682098,63622.0,63621.0,0.000913]
[1721329151544,1.8732284,63622.0,63621.0,0.000913]
[1721329151768,1.8746946,63622.0,63621.0,0.000913]
[1721329151978,1.87469463,63622.0,63621.0,0.000913]
[1721329152202,1.83788374,63622.0,63621.0,0.001913]
[1721329152416,1.75558374,63622.0,63621.0,0.001913]
[1721329152632,1.90993331,63622.0,63621.0,0.001913]
[1721329153997,1.125246,63622.0,63621.0,0.001913]
[1721329154255,0.81089,63622.0,63621.0,0.001913]
[1721329156486,0.025,63622.0,63621.0,0.080713]
[1721329156732,0.025,63622.0,63621.0,0.237893]
[1721329156944,0.025,63622.0,63621.0,0.080713]
[1721329157170,0.025,63622.0,63621.0,0.237893]
[1721329157392,0.014,63622.0,63621.0,0.932315]
[1721329157635,0.015,63622.0,63621.0,0.932315]
[1721329158392,0.014,63622.0,63621.0,1.40105774]
[1721329158626,0.015,63622.0,63621.0,1.40105774]
[1721329159108,0.001,63622.0,63621.0,1.40005774]
[1721329159779,0.001,63622.0,63621.0,1.40705774]
[1721329160011,0.157146,63635.0,63630.0,0.157156]
[1721329160227,0.001594,63634.0,63630.0,0.157156]
[1721329160446,0.158742,63634.0,63630.0,0.157156]
[1721329161181,0.001594,63634.0,63630.0,0.157156]
[1721329161414,0.001594,63635.0,63630.0,0.161156]
[1721329161651,0.15874,63635.0,63631.0,0.157156]
[1721329161899,0.15874,63635.0,63632.0,0.141]
[1721329162808,0.001594,63635.0,63632.0,0.141]
[1721329163293,0.001,63634.0,63632.0,0.141]
[1721329163520,0.001594,63633.0,63632.0,0.298153]
[1721329163733,0.001594,63633.0,63632.0,0.301153]
[1721329163954,0.002594,63635.0,63632.0,0.301153]
[1721329164177,0.002594,63635.0,63634.0,0.157148]
[1721329164400,0.002594,63635.0,63632.0,0.458303]
[1721329164401,0.001,63635.0,63632.0,0.458303]
[1721329164634,0.314273,63639.0,63633.0,0.15715]
[1721329164855,0.157141,63637.0,63633.0,0.15715]
[1721329165082,0.001594,63636.0,63633.0,0.15715]
[1721329165747,0.001594,63636.0,63632.0,0.455303]
[1721329165977,0.157138,63639.0,63634.0,0.157148]
[1721329166247,0.001594,63638.0,63634.0,0.471445]
[1721329166464,0.001594,63638.0,63634.0,0.157148]
[1721329166675,0.001594,63638.0,63634.0,0.314292]
[1721329166906,0.001594,63640.0,63636.0,0.157143]
[1721329167347,0.002,63639.0,63636.0,0.157143]
[1721329167574,0.001594,63638.0,63632.0,0.455303]
[1721329167796,0.002594,63638.0,63632.0,0.455303]
[1721329168016,0.157141,63637.0,63632.0,0.298153]
[1721329168230,0.001594,63636.0,63632.0,0.298153]
[1721329168449,0.001594,63636.0,63632.0,0.157153]
[1721329168670,0.001594,63636.0,63633.0,0.15715]
[1721329169397,0.26577579,63635.0,63621.0,0.19202318]
[1721329169633,0.157164,63628.0,63622.0,0.314352]
[1721329169873,0.314313,63631.0,63621.0,0.04992318]
[1721329169874,0.0627,63626.0,63621.0,0.04992318]
[1721329170101,0.471534,63622.0,63621.0,0.04992318]
[1721329170334,0.78589,63622.0,63621.0,0.000913]
[1721329170556,0.471534,63622.0,63621.0,0.000913]
[1721329171010,0.78589,63622.0,63621.0,0.000913]
[1721329171238,0.91293657,63622.0,63621.0,0.000913]
[1721329171474,0.78479,63622.0,63621.0,0.000913]
[1721329171924,0.78879,63622.0,63621.0,0.000913]
[1721329172379,0.79579,63622.0,63621.0,0.001913]
[1721329172597,0.92382566,63622.0,63621.0,0.001913]
[1721329173267,1.23418166,63622.0,63621.0,0.001913]
[1721329173783,1.3885634,63622.0,63621.0,0.001913]
[1721329174297,1.3835634,63622.0,63621.0,0.000913]
[1721329174523,1.4496634,63622.0,63621.0,0.000913]
[1721329174973,1.4476634,63622.0,63621.0,0.000913]
[1721329175606,1.4476634,63622.0,63621.0,0.001913]
[1721329175607,1.4566634,63622.0,63621.0,0.001913]
[1721329175863,1.5066634,63622.0,63621.0,0.001913]
[1721329176099,1.4566634,63622.0,63621.0,0.001913]
[1721329176319,1.4636634,63622.0,63621.0,0.001913]
[1721329177440,0.80079,63622.0,63621.0,0.001913]
[1721329179467,0.173178,63622.0,63621.0,0.001913]
[1721329179996,0.487534,63622.0,63621.0,0.001913]
[1721329180233,0.80189,63622.0,63621.0,0.001913]
[1721329180460,0.487534,63622.0,63621.0,0.001913]
[1721329181638,0.173178,63622.0,63621.0,0.001913]
[1721329183241,0.487534,63622.0,63621.0,0.001913]
[1721329183481,0.80189,63622.0,63621.0,0.001913]
[1721329183717,1.2892678,63622.0,63621.0,0.001913]
[1721329183986,1.57501984,63622.0,63621.0,0.001913]
[1721329184227,1.57584984,63622.0,63621.0,0.001913]
[1721329184462,1.57585324,63622.0,63621.0,0.001913]
[1721329184943,0.8530937,63622.0,63621.0,0.001913]
[1721329185223,0.85323678,63622.0,63621.0,0.001913]
[1721329185460,0.85323684,63622.0,63621.0,0.001913]
[1721329185906,0.488364,63622.0,63621.0,0.001913]
[1721329186152,0.488364,63622.0,63621.0,0.080613]
[1721329187352,0.01683,63622.0,63621.0,0.080613]
[1721329188049,0.01683,63622.0,63621.0,0.237793]
[1721329188269,0.01683,63622.0,63621.0,0.618154]
[1721329188755,0.01683,63622.0,63621.0,0.617154]
[1721329188756,0.00783,63622.0,63621.0,0.617154]
[1721329189188,0.00083,63622.0,63621.0,0.617154]
[1721329189719,0.00083,63622.0,63621.0,0.302793]
[1721329189936,0.00083,63622.0,63621.0,0.202793]
[1721329190172,0.00083,63622.0,63616.0,0.0614]
[1721329190416,0.157189,63618.0,63616.0,0.0614]
[1721329190645,0.314383,63617.0,63613.0,0.0632]
[1721329190874,0.00083,63622.0,63609.0,0.11247954]
[1721329190875,0.157204,63612.0,63609.0,0.11247954]
[1721329191107,0.314391,63615.0,63610.0,0.0012]
[1721329191108,0.157205,63611.0,63610.0,0.0012]
[1721329191341,0.157205,63611.0,63606.0,0.0632]
[1721329191342,0.157207,63610.0,63606.0,0.0632]
[1721329191585,0.157207,63610.0,63606.0,0.220417]
[1721329192756,0.157207,63610.0,63607.0,0.157215]
[1721329193300,0.157206,63611.0,63607.0,0.157215]
[1721329193516,0.00083,63622.0,63610.0,0.314413]
[1721329193746,0.05194101,63621.0,63612.0,0.453405]
[1721329193963,0.314373,63619.0,63612.0,0.139]
[1721329194186,0.157195,63615.0,63612.0,0.139]
[1721329194637,0.157193,63616.0,63612.0,0.296202]
[1721329195517,0.157196,63615.0,63612.0,0.139]
[1721329195942,0.314386,63616.0,63612.0,0.139]
[1721329195943,0.157193,63616.0,63612.0,0.296202]
[1721329196378,0.157193,63616.0,63612.0,0.297202]
[1721329196587,0.158193,63616.0,63612.0,0.297202]
[1721329196822,0.157195,63615.0,63612.0,0.296202]
[1721329197063,0.18349087,63615.0,63612.0,0.301202]
[1721329197279,0.158193,63616.0,63612.0,0.301202]
[1721329197496,0.158193,63616.0,63612.0,0.296202]
[1721329197718,0.157196,63615.0,63612.0,0.143]
[1721329198160,0.001,63616.0,63613.0,0.157198]
[1721329198373,0.001,63616.0,63614.0,0.0012]
[1721329198586,0.001,63616.0,63612.0,0.300202]
[1721329198587,0.157193,63616.0,63612.0,0.300202]
[1721329199006,0.157193,63616.0,63612.0,0.296202]
[1721329199486,0.314378,63618.0,63612.0,0.144]
[1721329199487,0.158195,63615.0,63612.0,0.144]
[1721329199708,0.157199,63614.0,63612.0,0.139]
[1721329199931,0.157196,63615.0,63613.0,0.0012]
[1721329200157,0.157196,63615.0,63612.0,0.143]
[1721329200372,0.786002,63613.0,63612.0,0.004]
[1721329200584,0.610201,63613.0,63612.0,0.004]
[1721329200794,0.157206,63611.0,63607.0,0.157214]
[1721329201043,0.314406,63612.0,63606.0,0.04964369]
[1721329201285,0.157222,63604.0,63603.0,0.0645]
[1721329201518,0.0454006,63612.0,63599.0,0.073663]
[1721329201519,0.157225,63603.0,63599.0,0.073663]
[1721329201730,0.157232,63600.0,63599.0,0.05878724]
[1721329201948,0.157232,63600.0,63599.0,0.009163]
[1721329202168,0.314462,63601.0,63599.0,0.009163]
[1721329202169,0.15723,63601.0,63599.0,0.009163]
[1721329202385,0.314456,63602.0,63599.0,0.009163]
[1721329202608,0.314436,63606.0,63602.0,0.157227]
[1721329202609,0.157218,63606.0,63602.0,0.157227]
[1721329202841,0.001,63603.0,63600.0,0.157231]
[1721329203056,0.001,63603.0,63601.0,0.0012]
[1721329203316,0.15722,63605.0,63601.0,0.157229]
[1721329204203,0.001,63603.0,63601.0,0.157229]
[1721329204418,0.001,63603.0,63602.0,0.157227]
[1721329205304,0.001,63603.0,63601.0,0.157229]
[1721329205525,0.393608,63612.0,63601.0,0.157229]
[1721329205526,0.11756885,63618.0,63608.0,0.314422]
[1721329205741,0.04702754,63621.0,63618.0,0.0627]
[1721329206189,0.001594,63621.0,63620.0,0.157181]
[1721329206419,0.00083,63622.0,63618.0,0.219886]
[1721329206662,0.001594,63621.0,63618.0,0.0627]
[1721329206875,0.157185,63620.0,63609.0,0.15438174]
[1721329207111,0.157185,63620.0,63608.0,0.04953487]
[1721329207112,0.157198,63614.0,63611.0,0.0661]
[1721329207323,0.157193,63616.0,63611.0,0.0661]
[1721329207537,0.157193,63616.0,63612.0,0.0012]
[1721329207769,0.157193,63616.0,63612.0,0.158401]
[1721329207988,0.157193,63616.0,63612.0,0.157201]
[1721329208208,0.009,63621.0,63613.0,0.1374]
[1721329208492,0.010594,63621.0,63619.0,0.157184]
[1721329208724,0.05033011,63619.0,63617.0,0.15719]
[1721329208944,0.05033011,63619.0,63618.0,0.157188]
[1721329209447,0.05033011,63619.0,63617.0,0.157189]
[1721329209680,0.05033011,63619.0,63618.0,0.471564]
[1721329209897,0.157203,63612.0,63610.0,0.062]
[1721329210111,0.157205,63611.0,63608.0,0.0754]
[1721329210324,0.157205,63611.0,63607.0,0.219214]
[1721329210497,0.157202,63613.0,63608.0,0.15721]
[1721329210707,0.157201,63613.0,63609.0,0.157209]
[1721329211361,0.314404,63613.0,63607.0,0.062]
[1721329211476,0.471631,63609.0,63608.0,0.0012]
[1721329211678,1.00198855,63609.0,63608.0,0.0012]
[1721329211904,0.471697,63600.0,63597.0,0.481763]
[1721329212344,0.786162,63600.0,63597.0,0.481763]
[1721329212583,0.83701033,63600.0,63597.0,0.481763]
[1721329213013,0.98853512,63600.0,63597.0,0.481763]
[1721329213229,1.35769348,63600.0,63597.0,0.481763]
[1721329213455,1.41799348,63600.0,63599.0,0.011163]
[1721329213671,1.4426008,63600.0,63599.0,0.011163]
[1721329213875,1.41799348,63600.0,63599.0,0.011163]
[1721329214486,0.471697,63600.0,63599.0,0.011163]
[1721329215387,0.137,63617.0,63600.0,0.0635]
[1721329215603,0.157226,63603.0,63601.0,0.0012]
[1721329215811,0.15680554,63603.0,63601.0,0.0012]
[1721329216062,0.15680554,63603.0,63600.0,0.0635]
[1721329216709,0.15680554,63603.0,63600.0,0.0645]
[1721329216915,0.15980554,63603.0,63600.0,0.0645]
[1721329217318,0.003,63603.0,63602.0,1.359192]
[1721329217542,0.003,63603.0,63602.0,1.57827374]
[1721329218184,0.00083,63615.0,63611.0,0.157204]
[1721329218417,0.00083,63615.0,63612.0,0.0638]
[1721329218673,0.157199,63614.0,63612.0,0.0638]
[1721329218891,0.158027,63615.0,63612.0,0.0638]
[1721329219521,0.157198,63614.0,63612.0,0.0638]
[1721329219967,0.00083,63615.0,63614.0,0.471594]
[1721329220212,0.01083,63615.0,63614.0,0.471594]
[1721329220455,0.02383,63615.0,63614.0,0.471594]
[1721329220897,0.02383,63615.0,63614.0,0.78599]
[1721329221313,0.00083,63615.0,63614.0,0.78599]
[1721329222209,0.00083,63615.0,63614.0,1.58166774]
[1721329222443,0.00083,63615.0,63614.0,1.60466774]
[1721329222444,0.00383,63615.0,63614.0,1.60466774]
[1721329222686,0.00983,63615.0,63614.0,1.60466774]
[1721329223184,0.00683,63615.0,63614.0,1.91906374]
[1721329223420,0.00683,63615.0,63614.0,1.58166774]
[1721329223650,0.00083,63615.0,63614.0,1.58166774]
[1721329223886,0.00183,63615.0,63614.0,1.59566774]
[1721329224118,0.00183,63615.0,63614.0,1.58166774]
[1721329224379,0.00283,63615.0,63614.0,1.59566774]
[1721329224621,0.00283,63615.0,63614.0,1.91006374]
[1721329224852,0.00283,63615.0,63614.0,2.16360924]
[1721329225095,0.00383,63615.0,63614.0,2.16360801]
[1721329225525,0.00383,63615.0,63614.0,2.21360801]
[1721329225743,0.00283,63615.0,63614.0,2.21360801]
[1721329225973,0.00083,63615.0,63614.0,2.19960801]
[1721329226216,0.00183,63615.0,63614.0,2.16359694]
[1721329227087,0.00183,63615.0,63614.0,2.21359694]
[1721329227310,0.00183,63615.0,63614.0,2.16359694]
[1721329227511,0.00183,63615.0,63614.0,2.03306374]
[1721329227750,0.00283,63615.0,63614.0,2.03306374]
[1721329228735,0.00283,63615.0,63614.0,1.71866774]
[1721329229092,0.00283,63615.0,63614.0,1.51296774]
[1721329229513,0.00283,63615.0,63614.0,0.629794]
[1721329229726,0.00283,63615.0,63614.0,0.94419]
[1721329229917,0.00183,63615.0,63614.0,0.94419]
[1721329230152,0.00283,63615.0,63614.0,0.171198]
[1721329230361,0.160025,63615.0,63614.0,0.014]
[1721329230602,0.474416,63615.0,63614.0,0.014]
[1721329230819,0.5218564,63615.0,63614.0,0.014]
[1721329231215,0.2064654,63615.0,63614.0,0.014]
[1721329231428,0.160025,63615.0,63614.0,0.014]
[1721329232075,0.456225,63615.0,63610.0,0.157207]
[1721329232218,0.157199,63614.0,63610.0,0.157207]
[1721329232575,0.235926,63615.0,63611.0,0.157205]
[1721329232807,0.26763741,63615.0,63611.0,0.157205]
[1721329233003,0.26663741,63615.0,63614.0,0.003]
[1721329233233,0.26763741,63615.0,63611.0,0.157205]
[1721329233692,0.157198,63614.0,63611.0,0.157205]
[1721329234137,0.00183,63615.0,63614.0,0.0012]
[1721329234356,0.00183,63615.0,63614.0,1.05009]
[1721329234570,0.00183,63615.0,63614.0,1.427986]